{"text_format":"1","workbook":"xlsx","n_sheets":2,"sheets":["訂購單 ","團購明細表"],"not_rendered":{"charts":0,"images":0,"macros":1,"external_links":0,"defined_names":2,"comments":0,"pivot_tables":0},"unopened":[],"bounds":{"document_bytes":16777216,"sheet_cells":100000,"rows_first":2000,"rows_last":500,"rows_between":2000,"halvings":0,"cell_chars":16384,"cell_head_chars":4096},"cells_cut":0,"cells_raw":0,"read":"whole","date_system":"1900"}

{"sheet":"訂購單 ","index":0,"n_rows":83,"n_cols":21,"rows_kept":83,"cut":false,"hidden":false,"merged":[[44,3,44,9],[52,3,52,9],[51,10,51,16],[54,10,54,16],[53,3,53,9],[57,10,57,16],[52,10,52,16],[49,10,49,16],[53,10,53,16],[50,3,50,9],[48,3,48,9],[54,3,54,9],[48,10,48,16],[51,3,51,9],[46,10,46,16],[82,0,88,20],[81,0,81,20],[80,18,80,20],[80,0,80,17],[68,10,68,16],[70,10,70,16],[69,10,69,16],[70,3,70,9],[68,3,68,9],[69,3,69,9],[71,3,71,9],[71,10,71,16],[79,3,79,18],[75,3,75,9],[75,10,75,16],[76,3,76,9],[76,10,76,16],[77,3,77,9],[77,10,77,16],[78,3,78,9],[78,10,78,16],[21,3,21,9],[31,3,31,9],[26,10,26,16],[19,0,19,1],[39,10,39,16],[40,3,40,9],[44,10,44,16],[47,10,47,16],[41,3,41,9],[30,3,30,9],[27,10,27,16],[26,3,26,9],[28,3,28,9],[38,10,38,16],[40,10,40,16],[22,3,22,9],[37,10,37,16],[33,3,33,9],[36,10,36,16],[47,3,47,9],[45,3,45,9],[20,0,44,1],[45,10,45,16],[46,3,46,9],[0,0,0,20],[20,10,20,16],[21,10,21,16],[22,10,22,16],[23,10,23,16],[14,18,14,20],[15,15,15,20],[16,16,16,17],[16,18,16,20],[23,3,23,9],[15,13,15,14],[16,4,16,8],[19,3,19,16],[14,9,14,10],[14,5,14,6],[15,3,15,12],[14,13,14,15],[14,11,14,12],[14,7,14,8],[20,3,20,9],[15,0,15,2],[13,0,13,20],[9,1,11,3],[16,10,16,12],[35,3,35,9],[35,10,35,16],[42,10,42,16],[43,10,43,16],[29,10,29,16],[27,3,27,9],[34,10,34,16],[32,10,32,16],[33,10,33,16],[41,10,41,16],[14,16,14,17],[25,10,25,16],[39,3,39,9],[34,3,34,9],[49,3,49,9],[56,10,56,16],[50,10,50,16],[24,3,24,9],[30,10,30,16],[24,10,24,16],[31,10,31,16],[36,3,36,9],[16,13,16,14],[17,0,17,20],[14,0,14,2],[14,3,14,4],[16,0,16,2],[29,3,29,9],[37,3,37,9],[38,3,38,9],[25,3,25,9],[43,3,43,9],[28,10,28,16],[32,3,32,9],[63,10,63,16],[59,10,59,16],[62,10,62,16],[59,3,59,9],[58,3,58,9],[65,10,65,16],[57,3,57,9],[55,3,55,9],[56,3,56,9],[55,10,55,16],[9,4,11,20],[66,3,66,9],[66,10,66,16],[42,3,42,9],[45,0,65,1],[61,10,61,16],[72,0,78,1],[67,3,67,9],[67,10,67,16],[72,3,72,9],[72,10,72,16],[73,3,73,9],[73,10,73,16],[74,3,74,9],[74,10,74,16],[64,3,64,9],[60,3,60,9],[61,3,61,9],[63,3,63,9],[58,10,58,16],[64,10,64,16],[65,3,65,9],[62,3,62,9],[60,10,60,16]]}
["【2025毛寶兔宅配網冬特賣 團購訂購單】"]
[]
["-活動時間：2025/12/2(二) - 2026/1/5(一)"]
["-活動辦法：單筆訂單滿$2,000免運費，未滿$2,000收取$100運費。離島、外島、部分偏遠地區恕不配送；訂單成立2~7個工作天內出貨(預購品除外)"]
["-付款方式：1)信用卡 2)ATM轉帳 3)貨到付款(電話、傳真訂購僅限貨到付款) 4)LINE Pay 5)街口支付 6)台灣Pay 7)悠遊付 8)全支付"]
["-活動說明：單筆訂單限送貨一個地點；貨到付款者請備妥正確貨款交由送貨人員，恕不找零"]
["[註] 週日不配送，若不方便收貨可直接與司機另約配送時間。「網路下單」獨享購物金，出貨後10天統一發放，若有特殊活動依照毛寶兔宅配網公告為主。"]
[]
[]
[null,"訂購方式",null,null,"★網站訂購 www.maobao2.com.tw\n★投單信箱 service@info.maobao.com.tw\n★電話訂購 0800-266-199 (週一~週五9:00-12:30、13:30-17:30)\n★傳真訂購 02-8976-2715 (10分鐘後請來電確認)"]
[]
[]
[]
["訂購人資料 *為必填欄位"]
["*姓名",null,null,null,null,"□小姐   □先生",null,"*主要聯絡方式",null,"□市話  □手機",null,"*市話",null,null,null,null,"*手機 "]
["*住址",null,null,null,null,null,null,null,null,null,null,null,null,"*email"]
["公司戶\n發票",null,null,"公司抬頭",null,null,null,null,null,"統一編號",null,null,null,"配達時段",null,"□平日到貨","□週六到貨",null,"※配達時段相關說明詳見\n注意事項"]
["*如須換開發票，需辦理退貨訂單取消重新下單。　　*訂單成立後及商品配送前1~2日，以email通知。須填寫手機、市話，無法聯繫即取消訂單。"]
[]
["系列",null,"項次","商品名稱",null,null,null,null,null,null,null,null,null,null,null,null,null,"市價","特價","數量","金額"]
["衣物清潔系列",null,1,"【毛寶兔】超天然小蘇打植物2倍濃縮洗衣精1000g+補充包800g x9 送毛寶兔蔬果食器洗滌液1000g",null,null,null,null,null,null,"★冬特賣限定組合，年度熱銷NO.1\n★超天然洗淨力，嬰幼兒衣物適用",null,null,null,null,null,null,1960,999,{"$f":"團購明細表!AH6","v":0},{"$f":"S21*T21","v":0}]
[null,null,2,"【毛寶兔】超天然小蘇打植物2倍濃縮洗衣精5020g x2 送毛寶兔超複合酵素衣物去漬凝膠250g",null,null,null,null,null,null,"★特殊瓶身輕鬆按壓，省力又便利\n★神奇魔刷，蛋白酵素深入分解頑垢",null,null,null,null,null,null,1925,999,{"$f":"團購明細表!AH7","v":0},{"$f":"S22*T22","v":0}]
[null,null,3,"【毛寶兔】超酵素制臭抗菌防霉洗衣精2000g+補充包1800g x6 送毛寶兔超酵素衣物去漬劑500g",null,null,null,null,null,null,"★日本SP強效去味因子，有效防霉及去除汗臭\n★深層洗淨污垢，避免有害病菌與霉菌產生",null,null,null,null,null,null,1293,799,{"$f":"團購明細表!AH8","v":0},0]
[null,null,4,"【毛寶】葳香洗淨病毒抗菌洗衣精-2X酵素植淨5020g x2 送毛寶制臭抗菌織物清新噴霧-瞬效除皺250g",null,null,null,null,null,null,"★有效洗淨4大病毒：冠狀病毒、腸病毒、A/B型流感病毒\n★2X濃縮大規格，用量省2倍，使用更持久",null,null,null,null,null,null,2018,1099,{"$f":"團購明細表!AH9","v":0},0]
[null,null,5,"【毛寶】葳香洗淨病毒抗菌洗衣精-防蟎極淨3000g + 補充包2000g x4 送毛寶葳香衣物抗菌水220g",null,null,null,null,null,null,"★究極防螨潔淨力，阻斷塵蟎預防孳生\n★澳洲天然尤加利精油深層洗淨，蘊含過敏原去除力",null,null,null,null,null,null,989,459,{"$f":"團購明細表!AH10","v":0},0]
[null,null,6,"【毛寶】葳香洗淨病毒抗菌洗衣精-防霉淨味3000g + 補充包2000g x4 送毛寶葳香衣物抗菌水220g",null,null,null,null,null,null,"★究極制臭力，終結惱人各種異味\n★1滴蘊含200種植物去味力，分解臭味分子",null,null,null,null,null,null,989,459,{"$f":"團購明細表!AH11","v":0},0]
[null,null,7,"【毛寶】小蘇打植萃香氛洗衣皂晶球-防蟎抗菌25顆 x2 + 除霉抗菌25顆 x2 送洗衣球5顆 x2(不挑款)",null,null,null,null,null,null,"★毛寶小蘇打+植萃液體皂，打造天然潔淨力\n★3D香氛晶球，48小時持久留香",null,null,null,null,null,null,1558,599,{"$f":"團購明細表!AH12","v":0},0]
[null,null,8,"【毛寶】PM2.5抗菌洗衣精2200g-除霉防蟎 x2 + 天然植萃 x2 + 制臭極淨 x2 送毛寶PM2.5抗菌洗衣精-除霉防蟎500g",null,null,null,null,null,null,"★V型奈米洗淨技術，深層洗淨PM2.5微米髒污\n★360度零死角，抑菌率99.9%，臭味OUT",null,null,null,null,null,null,1050,594,{"$f":"團購明細表!AH13","v":0},0]
[null,null,9,"【毛寶】X-SPORT專業運動酵素洗衣精500g-沁檸白麝香x2 送毛寶葳香衣物抗菌水220g",null,null,null,null,null,null,"★專為運動衣物研發，保護織物機能\n★日本專利SPA植萃制臭因子，分解深層異味",null,null,null,null,null,null,1277,799,{"$f":"團購明細表!AH14","v":0},0]
[null,null,10,"【毛寶】X-SPORT專業運動酵素洗衣精500g-玫瑰香柏x2 送毛寶葳香衣物抗菌水220g",null,null,null,null,null,null,"★專為運動衣物研發，保護織物機能\n★日本專利SPA植萃制臭因子，分解深層異味",null,null,null,null,null,null,1277,799,{"$f":"團購明細表!AH15","v":0},0]
[null,null,11,"【小鹿山丘】葡萄柚籽低敏抗菌洗衣精1000g + 補充包800g x3",null,null,null,null,null,null,"★天然葡萄柚籽萃取，抑菌率達99.9%\n★採用低敏型香氛精華，散發淡雅清香",null,null,null,null,null,null,426,299,{"$f":"團購明細表!AH16","v":0},0]
[null,null,12,"【毛寶】小蘇打洗衣液體皂2000g + 補充包1800g x4",null,null,null,null,null,null,"★天然無負擔，純淨椰子油液體皂呵護肌膚\n★黃金比例調和，清潔消臭一次到位",null,null,null,null,null,null,855,699,{"$f":"團購明細表!AH17","v":0},0]
[null,null,13,"【毛寶】小蘇打草本抗菌洗衣液體皂2000g + 補充包1800g x4",null,null,null,null,null,null,"★天然防禦力，草本抗菌因子降低細菌孳生\n★黃金比例調和，清潔消臭一次到位",null,null,null,null,null,null,855,699,{"$f":"團購明細表!AH18","v":0},0]
[null,null,14,"【毛寶】小蘇打晶球香氛洗衣液體皂-防霉淨味2000g+補充包1800g x4",null,null,null,null,null,null,"★皮膚科醫生安心推薦，USDA綠色產品認證\n★日本專利植萃去味，化妝品級防霉因子",null,null,null,null,null,null,1430,699,{"$f":"團購明細表!AH19","v":0},0]
[null,null,15,"【毛寶】小蘇打晶球香氛洗衣液體皂-防蟎親膚2000g+補充包1800g x4 ",null,null,null,null,null,null,"★皮膚科醫生安心推薦，USDA綠色產品認證\n★植物性精油阻斷塵蟎，溫和不刺激",null,null,null,null,null,null,1430,699,{"$f":"團購明細表!AH20","v":0},0]
[null,null,16,"【毛寶】小蘇打植萃香氛液體皂-制臭抗菌 補充包1800g x6",null,null,null,null,null,null,"★皮膚科醫生安心推薦，雙重防護達99.9%\n★日本專利植萃淨味，終結異味",null,null,null,null,null,null,1134,690,{"$f":"團購明細表!AH21","v":0},0]
[null,null,17,"【毛寶】小蘇打植萃香氛液體皂-防蹣抗菌 補充包1800g x6",null,null,null,null,null,null,"★皮膚科醫生安心推薦，雙重防護達99.9%\n★澳洲由加利精油防蹣，溫和親膚",null,null,null,null,null,null,1134,690,{"$f":"團購明細表!AH22","v":0},0]
[null,null,18,"【毛寶】小蘇打植萃香氛洗衣液體皂(自動投入)-防蟎抗菌700g x6",null,null,null,null,null,null,"★洗衣新體驗，一次搞定3個月洗衣需求\n★3倍濃縮高效洗淨，精準用量省時省力更省心",null,null,null,null,null,null,990,594,{"$f":"團購明細表!AH23","v":0},0]
[null,null,19,"【毛寶S】抗菌防霉洗衣精20Kg x10 送油嘴套管 + 毛寶S強效潔淨洗碗精4kg(清香柑橘)",null,null,null,null,null,null,"★毛寶S家庭號20公斤桶裝經濟實惠，大家庭、店家愛用\n★中性溫和配方，不含螢光劑，不傷肌膚及衣料",null,null,null,null,null,null,12250,6000,{"$f":"團購明細表!AH24","v":0},0]
[null,null,20,"【毛寶S】抗菌防霉洗衣精20Kg x4 送油嘴套管 + 毛寶小蘇打洗碗精1000g(甜橙茶氛)",null,null,null,null,null,null,"★毛寶S家庭號20公斤桶裝，大家庭、店家使用，經濟實惠\n★獨特抗菌防霉配方，有效去除細菌，預防感染與過敏",null,null,null,null,null,null,4919,2400,{"$f":"團購明細表!AH25","v":0},0]
[null,null,21,"【毛寶S】香氛酵素洗衣精20Kg x4 送油嘴套管 + 毛寶小蘇打洗碗精1000g(甜橙茶氛)",null,null,null,null,null,null,"★高效分解衣物上的汗水污漬，還原衣物潔淨感\n★調香師調配專屬晨曦玫瑰香氛，宛如漫步於玫瑰花園",null,null,null,null,null,null,6119,2400,{"$f":"團購明細表!AH26","v":0},0]
[null,null,22,"【毛寶S】溫暖日光柔軟精20kg x2 送油嘴套管",null,null,null,null,null,null,"★如曬過般和煦暖陽香味\n★柔軟配方，預防纖維起毛球                                ",null,null,null,null,null,null,2039,1200,{"$f":"團購明細表!AH27","v":0},0]
[null,null,23,"【毛寶S】高效濃縮抗菌防霉洗衣精10kg x2",null,null,null,null,null,null,"★全新高效濃縮配方，用量減半，洗淨效果再升級\n★獨特抗菌防霉配方，有效抑制細菌孳生",null,null,null,null,null,null,2160,1200,{"$f":"團購明細表!AH28","v":0},0]
[null,null,24,"【毛寶S】高效濃縮酵素香氛洗衣精10kg x2",null,null,null,null,null,null,"★全新高效濃縮配方，用量減半，洗淨效果再升級\n★導入蛋白活性酵素，強化污垢深層分解",null,null,null,null,null,null,2560,1200,{"$f":"團購明細表!AH29","v":0},0]
[null,null,25,"【毛寶】粉領精-多重酵素衣物去漬劑500g x2",null,null,null,null,null,null,"★網紅好評推薦「噴等洗」輕鬆3步驟，還衣物清白 \n★女生最好評的優雅野玫香檸，粉領族專屬香氣",null,null,null,null,null,null,436,218,{"$f":"團購明細表!AH30","v":0},0]
["居家清潔系列",null,26,"【毛寶】粉領精-多重酵素衣物去漬劑500g+補充瓶950g x2",null,null,null,null,null,null,"★網紅好評推薦「噴等洗」輕鬆3步驟，還衣物清白 \n★女生最好評的優雅野玫香檸，粉領族專屬香氣",null,null,null,null,null,null,854,449,{"$f":"團購明細表!AH31","v":0},0]
[null,null,27,"【毛寶】貼身衣物手洗精1000g-玫瑰天竺葵+果漾西西里+沁檸白麝香",null,null,null,null,null,null,"★99.9%深度抗菌，有效抑制病菌滋生與感染\n★專屬女性植萃香氛，貼身衣物專用",null,null,null,null,null,null,417,270,{"$f":"團購明細表!AH32","v":0},0]
[null,null,28,"【毛寶】貼身衣物手洗精-玫瑰天竺葵1000g + 補充包800g x2",null,null,null,null,null,null,"★99.9%深度抗菌，有效抑制病菌滋生與感染\n★專屬女性植萃香氛，貼身衣物專用",null,null,null,null,null,null,415,245,{"$f":"團購明細表!AH33","v":0},0]
[null,null,29,"【毛寶】環保冷洗精2800g + 補充包2000g",null,null,null,null,null,null,"★深度護纖技術，守護衣物不變形\n★99.9%天然抗菌力，抑制臭味生成",null,null,null,null,null,null,508,389,{"$f":"團購明細表!AH34","v":0},0]
[null,null,30,"【毛寶】除蟎抗菌冷洗精1000g + 補充包800g x2",null,null,null,null,null,null,"★抑制塵蟎，降低細菌感染機會\n★維護衣物機能，衣物常保如新",null,null,null,null,null,null,347,249,{"$f":"團購明細表!AH35","v":0},0]
[null,null,31,"【毛寶】葳香衣物柔軟精-花香3200g + 補充包1900g x2 送葳香洗衣精-防霉淨味200g",null,null,null,null,null,null,"★特殊柔軟劑，洗後讓衣物柔軟有彈性\n★可防灰塵、防靜電，衣物洗後持續散發天然花香",null,null,null,null,null,null,414,229,{"$f":"團購明細表!AH36","v":0},0]
[null,null,32,"【毛寶】葳香衣物柔軟精-防霉3200g + 補充包1900g x2 送葳香洗衣精-防霉淨味200g",null,null,null,null,null,null,"★特殊柔軟劑，洗後讓衣物柔軟有彈性\n★可防灰塵及靜電，讓衣物洗後散發陽光曬後暖暖香味",null,null,null,null,null,null,414,229,{"$f":"團購明細表!AH37","v":0},0]
[null,null,33,"【毛寶兔】超酵素衣物去漬劑500g x2",null,null,null,null,null,null,"★嬰幼兒衣物適用\n★蛋白分解酵素配方，有效去污",null,null,null,null,null,null,300,199,{"$f":"團購明細表!AH38","v":0},0]
[null,null,34,"【毛寶兔】超酵素衣物去漬劑補充瓶2000g x2 送噴槍瓶500g",null,null,null,null,null,null,"★嬰幼兒衣物適用\n★蛋白分解酵素配方、有效去污                        ",null,null,null,null,null,null,750,470,{"$f":"團購明細表!AH39","v":0},0]
[null,null,35,"【毛寶兔】超複合酵素衣物去漬凝膠250g x4",null,null,null,null,null,null,"★精粹3種酵素之獨家配方\n★神奇魔刷，深入纖維分解頑垢         ",null,null,null,null,null,null,900,396,{"$f":"團購明細表!AH40","v":0},0]
[null,null,36,"【毛寶兔】超天然小蘇打活氧殺菌漂白素330g x6",null,null,null,null,null,null,"★預防衣物發黃，提高衣物潔白度約60%\n★嬰幼兒及花色衣物均適用",null,null,null,null,null,null,900,534,{"$f":"團購明細表!AH41","v":0},0]
[null,null,37,"【毛寶】葳香魔法去污抗菌素500g x6",null,null,null,null,null,null,"★洗衣加1蓋、跟病毒壞菌說掰掰\n★洗淨難除污垢與異味",null,null,null,null,null,null,1560,654,{"$f":"團購明細表!AH42","v":0},0]
[null,null,38,"【毛寶】葳香洗淨4大病毒-衣物抗菌水1050g x6",null,null,null,null,null,null,"★榮獲國家品質標章「防疫產品」認證\n★室內晾曬好物推薦，48小時長效抗菌",null,null,null,null,null,null,1560,654,{"$f":"團購明細表!AH43","v":0},0]
[null,null,39,"【毛寶兔】超酵素活氧洗衣槽除菌去污劑250g x6 ",null,null,null,null,null,null,"★超酵素活氧配方，含PT酵素\n★SGS檢驗抑菌率>99.9％",null,null,null,null,null,null,450,270,{"$f":"團購明細表!AH44","v":0},0]
[null,null,40,"【毛寶】洗衣槽專用去污劑-洗淨病毒(300g-3入) x4",null,null,null,null,null,null,"★99.9%洗淨病毒\n★Ag+銀離子配方，高效移除頑強污垢",null,null,null,null,null,null,672,380,{"$f":"團購明細表!AH45","v":0},0]
[null,null,41,"【毛寶】葳香清潔病毒抗菌水噴霧425g x2 送抗菌水噴霧80g",null,null,null,null,null,null,"★99.99%阻斷4大病毒\n★食品級柑橘香無酒精，使用不刺激",null,null,null,null,null,null,678,218,{"$f":"團購明細表!AH46","v":0},0]
[null,null,42,"【毛寶】葳香地板清潔抗菌水2000g x2 送金消蟑10g",null,null,null,null,null,null,"★99.9%有效去除4大病毒\n★植萃低泡沫配方，速乾不留痕",null,null,null,null,null,null,825,218,{"$f":"團購明細表!AH47","v":0},0]
[null,null,43,"【香滿室】中性地板清潔劑-清新茶樹2000g + 補充包1800g 送金消蟑10g",null,null,null,null,null,null,"★萃取天然草本抑菌成分\n★溫和中性安全不刺激                            ",null,null,null,null,null,null,659,178,{"$f":"團購明細表!AH48","v":0},0]
[null,null,44,"【香滿室】中性地板清潔劑-海洋微風2000g + 補充包1800g 送金消蟑10g",null,null,null,null,null,null,"★萃取天然草本抑菌成分\n★溫和中性安全不刺激                            ",null,null,null,null,null,null,659,178,{"$f":"團購明細表!AH49","v":0},0]
[null,null,45,"【香滿室】中性地板清潔劑-檀木罄香2000g + 補充包1800g 送金消蟑10g",null,null,null,null,null,null,"★萃取天然草本抑菌成分\n★溫和中性安全不刺激                            ",null,null,null,null,null,null,659,178,{"$f":"團購明細表!AH50","v":0},0]
[null,null,46,"【香滿室】中性地板清潔劑-北海道薰衣草2000g + 補充包1800g 送金消蟑10g",null,null,null,null,null,null,"★萃取天然草本抑菌成分\n★溫和中性安全不刺激                            ",null,null,null,null,null,null,659,178,{"$f":"團購明細表!AH51","v":0},0]
[null,null,47,"【毛寶】小蘇打洗碗精-無香精2800g x2 送妙潔輕鬆掛細緻海綿菜瓜布(1枚吸盤+2片細緻海綿菜瓜布)",null,null,null,null,null,null,"★食品添加物等級小蘇打，有效洗淨碗盤油脂油污\n★溫和不刺激、不咬手",null,null,null,null,null,null,515,298,{"$f":"團購明細表!AH52","v":0},0]
[null,null,48,"【毛寶】果淨酵素食器蔬果洗滌液體皂/洗碗精700g-麝香葡萄 + 柚子果茶 + 蜜柑茶萃",null,null,null,null,null,null,"★USDA美國綠色認證，自然科學精準洗淨                                                 ★食器、蔬果及奶瓶清潔均適用",null,null,null,null,null,null,594,297,{"$f":"團購明細表!AH53","v":0},0]
[null,null,49,"【毛寶】熱水瓶開飲機洗淨劑(25g*3/盒) x2",null,null,null,null,null,null,"★熱水瓶水垢、開飲機、快煮壺、咖啡機除鈣均適用\n★有效分解水垢，消臭、不殘留，提升飲用水品質",null,null,null,null,null,null,178,118,{"$f":"團購明細表!AH54","v":0},0]
[null,null,50,"【毛寶】電鍋清潔劑200g x4",null,null,null,null,null,null,"★洗淨水垢，去除難洗焦垢\n★食用級檸檬酸複合配方",null,null,null,null,null,null,516,300,{"$f":"團購明細表!AH55","v":0},0]
[null,null,51,"【毛寶】小蘇打烤箱&氣炸鍋潔淨泡425g x2",null,null,null,null,null,null,"★食品添加物等級小蘇打及植物來源去垢成分\n★為廚房料理電器清潔設計，烤箱/氣炸鍋/微波爐皆OK",null,null,null,null,null,null,436,218,{"$f":"團購明細表!AH56","v":0},0]
[null,null,52,"【毛寶】毛寶廚房食器淨垢泡泡粉500g x2",null,null,null,null,null,null,"★3重活氧解垢泡，深度瓦解污垢\n★輕鬆清潔，方便省時省力",null,null,null,null,null,null,436,218,{"$f":"團購明細表!AH57","v":0},0]
[null,null,53,"【毛寶兔】超泡沫廚房去油除垢清潔劑500g x2",null,null,null,null,null,null,"★高效網狀噴頭，輕鬆包覆油污\n★強效去油成分CQR，5分鐘去除頑垢",null,null,null,null,null,null,258,160,{"$f":"團購明細表!AH58","v":0},0]
[null,null,54,"【毛寶兔】超泡沫廚房清潔劑 補充瓶2000g x2 送噴槍瓶500g",null,null,null,null,null,null,"★高效網狀噴頭，輕鬆包覆油污\n★強效去油成分CQR，5分鐘去除頑垢",null,null,null,null,null,null,729,499,{"$f":"團購明細表!AH59","v":0},0]
[null,null,55,"【毛寶兔】超檸檬浴廁清潔劑500g x2",null,null,null,null,null,null,"★天然有機檸檬酸，迅速去除水垢及皂垢\n★使用後散發淡淡花果清香",null,null,null,null,null,null,278,160,{"$f":"團購明細表!AH60","v":0},0]
[null,null,56,"【毛寶兔】超檸檬浴廁去污除菌清潔劑補充瓶2000g x2 送噴槍瓶500g",null,null,null,null,null,null,"★天然有機檸檬酸，迅速去除水垢及皂垢\n★使用後散發淡淡花果清香",null,null,null,null,null,null,779,499,{"$f":"團購明細表!AH61","v":0},0]
[null,null,57,"【毛寶】超強效萬用去污劑-白柚清香補充瓶2000g x2 送噴槍瓶500g",null,null,null,null,null,null,"★超強效配方，獨特CQ-100強效去污因子，輕鬆終結頑垢\n★淡雅柚子果香，清潔時味道清新不刺鼻",null,null,null,null,null,null,497,299,{"$f":"團購明細表!AH62","v":0},0]
[null,null,58,"【毛寶】葳香抗菌洗手慕斯300g x2",null,null,null,null,null,null,"★保養品級玻尿酸水潤保溼，洗後不乾澀\n★慕斯型泡沫，每次用量僅為洗手乳的1/3",null,null,null,null,null,null,476,238,{"$f":"團購明細表!AH63","v":0},0]
[null,null,59,"【小鹿山丘】葡萄柚籽植萃乾洗手80g x2",null,null,null,null,null,null,"★隨身清潔首選\n★添加葡萄柚籽萃取、七合一草本潔淨因子",null,null,null,null,null,null,398,199,{"$f":"團購明細表!AH64","v":0},0]
[null,null,{"$f":"SUM(U21:U79)","v":0},"訂單金額未滿$2,000元，另付運費$100；滿$2,000免運",null,null,null,null,null,null,null,null,null,null,null,null,null,null,null,{"$f":"IF(C80<2500,1,0)","v":1},{"$f":"T80*100","v":100}]
["訂單總金額(NT$元)",null,null,null,null,null,null,null,null,null,null,null,null,null,null,null,null,null,{"$f":"SUM(U21:U79)+U80","v":100}]
["注意事項"]
["1. 訂購單請詳細填寫email及聯絡電話，訂單成立以email通知，出貨前1～2天以mail通知預計到貨日期，如不便收件，可直接與司機改期配送。無法聯繫3次，即取消訂單。\n2. 響應財政部電子發票政策，一律開立電子發票，發票開立資訊會派送到email信箱。二聯式改開三聯式、三聯式改開二聯式，請辦理退貨取消訂單重新下單。\n3. 送貨時間週一至週六9:00~17:00，訂單成立2~7個工作天出貨(預購品除外)，離島外島恕不配送。ATM轉帳、信用卡付款、LINE Pay、街口支付、台灣Pay、悠遊付、全支付僅適用「網路訂購」，一次付清。電話及傳真訂購僅限用「貨到付款」，貨到付款者請備妥正確貨款交由送貨人員，恕不找零。週六配送無法指定日期，以實際出貨順序安排配送；實際配送時段，以貨運公司配送實際為準。若遇貨品配達時不方便收貨，請直接與司機另約配送時間，且另約之配送時間不可超過7天；週日不送貨。\n4. 單筆訂單未滿$2,000則收$100運費。12/18前單筆訂單「滿$2,500送官網限定毛寶兔桌曆、滿$3,500送毛寶啵亮Plus食器杯垢去漬劑330g、滿$4,000送毛寶小蘇打植萃香氛洗衣皂晶球25顆(不挑款)、滿$6,000送毛寶S洗碗精4kg(不挑款)」，滿額贈品依照毛寶兔宅配網實際公告為主，贈品恕不累送，數量有限送完為止。毛寶股份有限公司保留更換其他贈品權利。\n5. 每筆訂貨單之訂貨資料將以本公司實際收到之訂貨單內容為依據，如有任何因電腦、網路、電話、技術或不可歸責於毛寶股份有限公司之事由，而使購買者所寄出或填寫之資料有遲延、遺失、錯誤、無法辨識或毀損情況，毛寶股份有限公司不負任何法律責任，購買者亦不得因此異議或要求賠償。毛寶股份有限公司保留接單與否及更換贈品之權利，以及更改/解釋活動內容之權利。\n6. 本人同意所填資料供毛寶股份有限公司作為促銷及行銷活動使用；若不同意請來信或來電表示。\n7. 活動價格、資訊以網站公告為主。如有任何疑問，請聯絡客服電話0800-266-199  客服傳真02-8976-2715  服務時間：週一至週五  09:00～12:30、13:30 ~ 17:00。"]

{"sheet":"團購明細表","index":1,"n_rows":65,"n_cols":34,"rows_kept":65,"cut":false,"hidden":false,"merged":[[1,0,1,10],[2,33,4,33]]}
["【2025毛寶兔宅配網冬特賣 訂購單】"]
["*此明細表的總計數量與金額，將會統計於另一工作表【團購訂購單】中。"]
[null,null,"訂\n購\n人",null,null,null,null,null,null,null,null,null,null,null,null,null,null,null,null,null,null,null,null,null,null,null,null,null,null,null,null,null,null,"品項總數"]
[null,null,"分機"]
["項次","產品名稱","特價",1,2,3,4,5,6,7,8,9,10,11,12,13,14,15,16,17,18,19,20,21,22,23,24,25,26,27,28,29,30]
[1,{"$f":"'訂購單 '!D21","v":"【毛寶兔】超天然小蘇打植物2倍濃縮洗衣精1000g+補充包800g x9 送毛寶兔蔬果食器洗滌液1000g"},{"$f":"'訂購單 '!S21","v":999},null,null,null,null,null,null,null,null,null,null,null,null,null,null,null,null,null,null,null,null,null,null,null,null,null,null,null,null,null,null,{"$f":"SUM(D6:AG6)","v":0}]
[2,{"$f":"'訂購單 '!D22","v":"【毛寶兔】超天然小蘇打植物2倍濃縮洗衣精5020g x2 送毛寶兔超複合酵素衣物去漬凝膠250g"},{"$f":"'訂購單 '!S22","v":999},null,null,null,null,null,null,null,null,null,null,null,null,null,null,null,null,null,null,null,null,null,null,null,null,null,null,null,null,null,null,{"$f":"SUM(D7:AG7)","v":0}]
[3,{"$f":"'訂購單 '!D23","v":"【毛寶兔】超酵素制臭抗菌防霉洗衣精2000g+補充包1800g x6 送毛寶兔超酵素衣物去漬劑500g"},{"$f":"'訂購單 '!S23","v":799},null,null,null,null,null,null,null,null,null,null,null,null,null,null,null,null,null,null,null,null,null,null,null,null,null,null,null,null,null,null,0]
[4,{"$f":"'訂購單 '!D24","v":"【毛寶】葳香洗淨病毒抗菌洗衣精-2X酵素植淨5020g x2 送毛寶制臭抗菌織物清新噴霧-瞬效除皺250g"},{"$f":"'訂購單 '!S24","v":1099},null,null,null,null,null,null,null,null,null,null,null,null,null,null,null,null,null,null,null,null,null,null,null,null,null,null,null,null,null,null,0]
[5,{"$f":"'訂購單 '!D25","v":"【毛寶】葳香洗淨病毒抗菌洗衣精-防蟎極淨3000g + 補充包2000g x4 送毛寶葳香衣物抗菌水220g"},{"$f":"'訂購單 '!S25","v":459},null,null,null,null,null,null,null,null,null,null,null,null,null,null,null,null,null,null,null,null,null,null,null,null,null,null,null,null,null,null,0]
[6,{"$f":"'訂購單 '!D26","v":"【毛寶】葳香洗淨病毒抗菌洗衣精-防霉淨味3000g + 補充包2000g x4 送毛寶葳香衣物抗菌水220g"},{"$f":"'訂購單 '!S26","v":459},null,null,null,null,null,null,null,null,null,null,null,null,null,null,null,null,null,null,null,null,null,null,null,null,null,null,null,null,null,null,0]
[7,{"$f":"'訂購單 '!D27","v":"【毛寶】小蘇打植萃香氛洗衣皂晶球-防蟎抗菌25顆 x2 + 除霉抗菌25顆 x2 送洗衣球5顆 x2(不挑款)"},{"$f":"'訂購單 '!S27","v":599},null,null,null,null,null,null,null,null,null,null,null,null,null,null,null,null,null,null,null,null,null,null,null,null,null,null,null,null,null,null,0]
[8,{"$f":"'訂購單 '!D28","v":"【毛寶】PM2.5抗菌洗衣精2200g-除霉防蟎 x2 + 天然植萃 x2 + 制臭極淨 x2 送毛寶PM2.5抗菌洗衣精-除霉防蟎500g"},{"$f":"'訂購單 '!S28","v":594},null,null,null,null,null,null,null,null,null,null,null,null,null,null,null,null,null,null,null,null,null,null,null,null,null,null,null,null,null,null,0]
[9,{"$f":"'訂購單 '!D29","v":"【毛寶】X-SPORT專業運動酵素洗衣精500g-沁檸白麝香x2 送毛寶葳香衣物抗菌水220g"},{"$f":"'訂購單 '!S29","v":799},null,null,null,null,null,null,null,null,null,null,null,null,null,null,null,null,null,null,null,null,null,null,null,null,null,null,null,null,null,null,0]
[10,{"$f":"'訂購單 '!D30","v":"【毛寶】X-SPORT專業運動酵素洗衣精500g-玫瑰香柏x2 送毛寶葳香衣物抗菌水220g"},{"$f":"'訂購單 '!S30","v":799},null,null,null,null,null,null,null,null,null,null,null,null,null,null,null,null,null,null,null,null,null,null,null,null,null,null,null,null,null,null,0]
[11,{"$f":"'訂購單 '!D31","v":"【小鹿山丘】葡萄柚籽低敏抗菌洗衣精1000g + 補充包800g x3"},{"$f":"'訂購單 '!S31","v":299},null,null,null,null,null,null,null,null,null,null,null,null,null,null,null,null,null,null,null,null,null,null,null,null,null,null,null,null,null,null,0]
[12,{"$f":"'訂購單 '!D32","v":"【毛寶】小蘇打洗衣液體皂2000g + 補充包1800g x4"},{"$f":"'訂購單 '!S32","v":699},null,null,null,null,null,null,null,null,null,null,null,null,null,null,null,null,null,null,null,null,null,null,null,null,null,null,null,null,null,null,0]
[13,{"$f":"'訂購單 '!D33","v":"【毛寶】小蘇打草本抗菌洗衣液體皂2000g + 補充包1800g x4"},{"$f":"'訂購單 '!S33","v":699},null,null,null,null,null,null,null,null,null,null,null,null,null,null,null,null,null,null,null,null,null,null,null,null,null,null,null,null,null,null,0]
[14,{"$f":"'訂購單 '!D34","v":"【毛寶】小蘇打晶球香氛洗衣液體皂-防霉淨味2000g+補充包1800g x4"},{"$f":"'訂購單 '!S34","v":699},null,null,null,null,null,null,null,null,null,null,null,null,null,null,null,null,null,null,null,null,null,null,null,null,null,null,null,null,null,null,0]
[15,{"$f":"'訂購單 '!D35","v":"【毛寶】小蘇打晶球香氛洗衣液體皂-防蟎親膚2000g+補充包1800g x4 "},{"$f":"'訂購單 '!S35","v":699},null,null,null,null,null,null,null,null,null,null,null,null,null,null,null,null,null,null,null,null,null,null,null,null,null,null,null,null,null,null,0]
[16,{"$f":"'訂購單 '!D36","v":"【毛寶】小蘇打植萃香氛液體皂-制臭抗菌 補充包1800g x6"},{"$f":"'訂購單 '!S36","v":690},null,null,null,null,null,null,null,null,null,null,null,null,null,null,null,null,null,null,null,null,null,null,null,null,null,null,null,null,null,null,0]
[17,{"$f":"'訂購單 '!D37","v":"【毛寶】小蘇打植萃香氛液體皂-防蹣抗菌 補充包1800g x6"},{"$f":"'訂購單 '!S37","v":690},null,null,null,null,null,null,null,null,null,null,null,null,null,null,null,null,null,null,null,null,null,null,null,null,null,null,null,null,null,null,0]
[18,{"$f":"'訂購單 '!D38","v":"【毛寶】小蘇打植萃香氛洗衣液體皂(自動投入)-防蟎抗菌700g x6"},{"$f":"'訂購單 '!S38","v":594},null,null,null,null,null,null,null,null,null,null,null,null,null,null,null,null,null,null,null,null,null,null,null,null,null,null,null,null,null,null,0]
[19,{"$f":"'訂購單 '!D39","v":"【毛寶S】抗菌防霉洗衣精20Kg x10 送油嘴套管 + 毛寶S強效潔淨洗碗精4kg(清香柑橘)"},{"$f":"'訂購單 '!S39","v":6000},null,null,null,null,null,null,null,null,null,null,null,null,null,null,null,null,null,null,null,null,null,null,null,null,null,null,null,null,null,null,0]
[20,{"$f":"'訂購單 '!D40","v":"【毛寶S】抗菌防霉洗衣精20Kg x4 送油嘴套管 + 毛寶小蘇打洗碗精1000g(甜橙茶氛)"},{"$f":"'訂購單 '!S40","v":2400},null,null,null,null,null,null,null,null,null,null,null,null,null,null,null,null,null,null,null,null,null,null,null,null,null,null,null,null,null,null,0]
[21,{"$f":"'訂購單 '!D41","v":"【毛寶S】香氛酵素洗衣精20Kg x4 送油嘴套管 + 毛寶小蘇打洗碗精1000g(甜橙茶氛)"},{"$f":"'訂購單 '!S41","v":2400},null,null,null,null,null,null,null,null,null,null,null,null,null,null,null,null,null,null,null,null,null,null,null,null,null,null,null,null,null,null,0]
[22,{"$f":"'訂購單 '!D42","v":"【毛寶S】溫暖日光柔軟精20kg x2 送油嘴套管"},{"$f":"'訂購單 '!S42","v":1200},null,null,null,null,null,null,null,null,null,null,null,null,null,null,null,null,null,null,null,null,null,null,null,null,null,null,null,null,null,null,0]
[23,{"$f":"'訂購單 '!D43","v":"【毛寶S】高效濃縮抗菌防霉洗衣精10kg x2"},{"$f":"'訂購單 '!S43","v":1200},null,null,null,null,null,null,null,null,null,null,null,null,null,null,null,null,null,null,null,null,null,null,null,null,null,null,null,null,null,null,0]
[24,{"$f":"'訂購單 '!D44","v":"【毛寶S】高效濃縮酵素香氛洗衣精10kg x2"},{"$f":"'訂購單 '!S44","v":1200},null,null,null,null,null,null,null,null,null,null,null,null,null,null,null,null,null,null,null,null,null,null,null,null,null,null,null,null,null,null,0]
[25,{"$f":"'訂購單 '!D45","v":"【毛寶】粉領精-多重酵素衣物去漬劑500g x2"},{"$f":"'訂購單 '!S45","v":218},null,null,null,null,null,null,null,null,null,null,null,null,null,null,null,null,null,null,null,null,null,null,null,null,null,null,null,null,null,null,0]
[26,{"$f":"'訂購單 '!D46","v":"【毛寶】粉領精-多重酵素衣物去漬劑500g+補充瓶950g x2"},{"$f":"'訂購單 '!S46","v":449},null,null,null,null,null,null,null,null,null,null,null,null,null,null,null,null,null,null,null,null,null,null,null,null,null,null,null,null,null,null,0]
[27,{"$f":"'訂購單 '!D47","v":"【毛寶】貼身衣物手洗精1000g-玫瑰天竺葵+果漾西西里+沁檸白麝香"},{"$f":"'訂購單 '!S47","v":270},null,null,null,null,null,null,null,null,null,null,null,null,null,null,null,null,null,null,null,null,null,null,null,null,null,null,null,null,null,null,0]
[28,{"$f":"'訂購單 '!D48","v":"【毛寶】貼身衣物手洗精-玫瑰天竺葵1000g + 補充包800g x2"},{"$f":"'訂購單 '!S48","v":245},null,null,null,null,null,null,null,null,null,null,null,null,null,null,null,null,null,null,null,null,null,null,null,null,null,null,null,null,null,null,0]
[29,{"$f":"'訂購單 '!D49","v":"【毛寶】環保冷洗精2800g + 補充包2000g"},{"$f":"'訂購單 '!S49","v":389},null,null,null,null,null,null,null,null,null,null,null,null,null,null,null,null,null,null,null,null,null,null,null,null,null,null,null,null,null,null,0]
[30,{"$f":"'訂購單 '!D50","v":"【毛寶】除蟎抗菌冷洗精1000g + 補充包800g x2"},{"$f":"'訂購單 '!S50","v":249},null,null,null,null,null,null,null,null,null,null,null,null,null,null,null,null,null,null,null,null,null,null,null,null,null,null,null,null,null,null,0]
[31,{"$f":"'訂購單 '!D51","v":"【毛寶】葳香衣物柔軟精-花香3200g + 補充包1900g x2 送葳香洗衣精-防霉淨味200g"},{"$f":"'訂購單 '!S51","v":229},null,null,null,null,null,null,null,null,null,null,null,null,null,null,null,null,null,null,null,null,null,null,null,null,null,null,null,null,null,null,0]
[32,{"$f":"'訂購單 '!D52","v":"【毛寶】葳香衣物柔軟精-防霉3200g + 補充包1900g x2 送葳香洗衣精-防霉淨味200g"},{"$f":"'訂購單 '!S52","v":229},null,null,null,null,null,null,null,null,null,null,null,null,null,null,null,null,null,null,null,null,null,null,null,null,null,null,null,null,null,null,0]
[33,{"$f":"'訂購單 '!D53","v":"【毛寶兔】超酵素衣物去漬劑500g x2"},{"$f":"'訂購單 '!S53","v":199},null,null,null,null,null,null,null,null,null,null,null,null,null,null,null,null,null,null,null,null,null,null,null,null,null,null,null,null,null,null,0]
[34,{"$f":"'訂購單 '!D54","v":"【毛寶兔】超酵素衣物去漬劑補充瓶2000g x2 送噴槍瓶500g"},{"$f":"'訂購單 '!S54","v":470},null,null,null,null,null,null,null,null,null,null,null,null,null,null,null,null,null,null,null,null,null,null,null,null,null,null,null,null,null,null,0]
[35,{"$f":"'訂購單 '!D55","v":"【毛寶兔】超複合酵素衣物去漬凝膠250g x4"},{"$f":"'訂購單 '!S55","v":396},null,null,null,null,null,null,null,null,null,null,null,null,null,null,null,null,null,null,null,null,null,null,null,null,null,null,null,null,null,null,0]
[36,{"$f":"'訂購單 '!D56","v":"【毛寶兔】超天然小蘇打活氧殺菌漂白素330g x6"},{"$f":"'訂購單 '!S56","v":534},null,null,null,null,null,null,null,null,null,null,null,null,null,null,null,null,null,null,null,null,null,null,null,null,null,null,null,null,null,null,0]
[37,{"$f":"'訂購單 '!D57","v":"【毛寶】葳香魔法去污抗菌素500g x6"},{"$f":"'訂購單 '!S57","v":654},null,null,null,null,null,null,null,null,null,null,null,null,null,null,null,null,null,null,null,null,null,null,null,null,null,null,null,null,null,null,0]
[38,{"$f":"'訂購單 '!D58","v":"【毛寶】葳香洗淨4大病毒-衣物抗菌水1050g x6"},{"$f":"'訂購單 '!S58","v":654},null,null,null,null,null,null,null,null,null,null,null,null,null,null,null,null,null,null,null,null,null,null,null,null,null,null,null,null,null,null,0]
[39,{"$f":"'訂購單 '!D59","v":"【毛寶兔】超酵素活氧洗衣槽除菌去污劑250g x6 "},{"$f":"'訂購單 '!S59","v":270},null,null,null,null,null,null,null,null,null,null,null,null,null,null,null,null,null,null,null,null,null,null,null,null,null,null,null,null,null,null,0]
[40,{"$f":"'訂購單 '!D60","v":"【毛寶】洗衣槽專用去污劑-洗淨病毒(300g-3入) x4"},{"$f":"'訂購單 '!S60","v":380},null,null,null,null,null,null,null,null,null,null,null,null,null,null,null,null,null,null,null,null,null,null,null,null,null,null,null,null,null,null,0]
[41,{"$f":"'訂購單 '!D61","v":"【毛寶】葳香清潔病毒抗菌水噴霧425g x2 送抗菌水噴霧80g"},{"$f":"'訂購單 '!S61","v":218},null,null,null,null,null,null,null,null,null,null,null,null,null,null,null,null,null,null,null,null,null,null,null,null,null,null,null,null,null,null,0]
[42,{"$f":"'訂購單 '!D62","v":"【毛寶】葳香地板清潔抗菌水2000g x2 送金消蟑10g"},{"$f":"'訂購單 '!S62","v":218},null,null,null,null,null,null,null,null,null,null,null,null,null,null,null,null,null,null,null,null,null,null,null,null,null,null,null,null,null,null,0]
[43,{"$f":"'訂購單 '!D63","v":"【香滿室】中性地板清潔劑-清新茶樹2000g + 補充包1800g 送金消蟑10g"},{"$f":"'訂購單 '!S63","v":178},null,null,null,null,null,null,null,null,null,null,null,null,null,null,null,null,null,null,null,null,null,null,null,null,null,null,null,null,null,null,0]
[44,{"$f":"'訂購單 '!D64","v":"【香滿室】中性地板清潔劑-海洋微風2000g + 補充包1800g 送金消蟑10g"},{"$f":"'訂購單 '!S64","v":178},null,null,null,null,null,null,null,null,null,null,null,null,null,null,null,null,null,null,null,null,null,null,null,null,null,null,null,null,null,null,0]
[45,{"$f":"'訂購單 '!D65","v":"【香滿室】中性地板清潔劑-檀木罄香2000g + 補充包1800g 送金消蟑10g"},{"$f":"'訂購單 '!S65","v":178},null,null,null,null,null,null,null,null,null,null,null,null,null,null,null,null,null,null,null,null,null,null,null,null,null,null,null,null,null,null,0]
[46,{"$f":"'訂購單 '!D66","v":"【香滿室】中性地板清潔劑-北海道薰衣草2000g + 補充包1800g 送金消蟑10g"},{"$f":"'訂購單 '!S66","v":178},null,null,null,null,null,null,null,null,null,null,null,null,null,null,null,null,null,null,null,null,null,null,null,null,null,null,null,null,null,null,0]
[47,{"$f":"'訂購單 '!D67","v":"【毛寶】小蘇打洗碗精-無香精2800g x2 送妙潔輕鬆掛細緻海綿菜瓜布(1枚吸盤+2片細緻海綿菜瓜布)"},{"$f":"'訂購單 '!S67","v":298},null,null,null,null,null,null,null,null,null,null,null,null,null,null,null,null,null,null,null,null,null,null,null,null,null,null,null,null,null,null,0]
[48,{"$f":"'訂購單 '!D68","v":"【毛寶】果淨酵素食器蔬果洗滌液體皂/洗碗精700g-麝香葡萄 + 柚子果茶 + 蜜柑茶萃"},{"$f":"'訂購單 '!S68","v":297},null,null,null,null,null,null,null,null,null,null,null,null,null,null,null,null,null,null,null,null,null,null,null,null,null,null,null,null,null,null,0]
[49,{"$f":"'訂購單 '!D69","v":"【毛寶】熱水瓶開飲機洗淨劑(25g*3/盒) x2"},{"$f":"'訂購單 '!S69","v":118},null,null,null,null,null,null,null,null,null,null,null,null,null,null,null,null,null,null,null,null,null,null,null,null,null,null,null,null,null,null,0]
[50,{"$f":"'訂購單 '!D70","v":"【毛寶】電鍋清潔劑200g x4"},{"$f":"'訂購單 '!S70","v":300},null,null,null,null,null,null,null,null,null,null,null,null,null,null,null,null,null,null,null,null,null,null,null,null,null,null,null,null,null,null,0]
[51,{"$f":"'訂購單 '!D71","v":"【毛寶】小蘇打烤箱&氣炸鍋潔淨泡425g x2"},{"$f":"'訂購單 '!S71","v":218},null,null,null,null,null,null,null,null,null,null,null,null,null,null,null,null,null,null,null,null,null,null,null,null,null,null,null,null,null,null,0]
[52,{"$f":"'訂購單 '!D72","v":"【毛寶】毛寶廚房食器淨垢泡泡粉500g x2"},{"$f":"'訂購單 '!S72","v":218},null,null,null,null,null,null,null,null,null,null,null,null,null,null,null,null,null,null,null,null,null,null,null,null,null,null,null,null,null,null,0]
[53,{"$f":"'訂購單 '!D73","v":"【毛寶兔】超泡沫廚房去油除垢清潔劑500g x2"},{"$f":"'訂購單 '!S73","v":160},null,null,null,null,null,null,null,null,null,null,null,null,null,null,null,null,null,null,null,null,null,null,null,null,null,null,null,null,null,null,0]
[54,{"$f":"'訂購單 '!D74","v":"【毛寶兔】超泡沫廚房清潔劑 補充瓶2000g x2 送噴槍瓶500g"},{"$f":"'訂購單 '!S74","v":499},null,null,null,null,null,null,null,null,null,null,null,null,null,null,null,null,null,null,null,null,null,null,null,null,null,null,null,null,null,null,0]
[55,{"$f":"'訂購單 '!D75","v":"【毛寶兔】超檸檬浴廁清潔劑500g x2"},{"$f":"'訂購單 '!S75","v":160},null,null,null,null,null,null,null,null,null,null,null,null,null,null,null,null,null,null,null,null,null,null,null,null,null,null,null,null,null,null,0]
[56,{"$f":"'訂購單 '!D76","v":"【毛寶兔】超檸檬浴廁去污除菌清潔劑補充瓶2000g x2 送噴槍瓶500g"},{"$f":"'訂購單 '!S76","v":499},null,null,null,null,null,null,null,null,null,null,null,null,null,null,null,null,null,null,null,null,null,null,null,null,null,null,null,null,null,null,0]
[57,{"$f":"'訂購單 '!D77","v":"【毛寶】超強效萬用去污劑-白柚清香補充瓶2000g x2 送噴槍瓶500g"},{"$f":"'訂購單 '!S77","v":299},null,null,null,null,null,null,null,null,null,null,null,null,null,null,null,null,null,null,null,null,null,null,null,null,null,null,null,null,null,null,0]
[58,{"$f":"'訂購單 '!D78","v":"【毛寶】葳香抗菌洗手慕斯300g x2"},{"$f":"'訂購單 '!S78","v":238},null,null,null,null,null,null,null,null,null,null,null,null,null,null,null,null,null,null,null,null,null,null,null,null,null,null,null,null,null,null,0]
[59,{"$f":"'訂購單 '!D79","v":"【小鹿山丘】葡萄柚籽植萃乾洗手80g x2"},{"$f":"'訂購單 '!S79","v":199},null,null,null,null,null,null,null,null,null,null,null,null,null,null,null,null,null,null,null,null,null,null,null,null,null,null,null,null,null,null,0]
[null,null,"小計",{"$f":"D6*$C$6+D7*$C$7+D8*$C$8+D9*$C$9+D10*$C$10+D11*$C$11+D12*$C$12+D13*$C$13+D14*$C$14+D15*$C$15+D16*$C$16+D17*$C$17+D18*$C$18+D19*$C$19+D20*$C$20+D21*$C$21+D22*$C$22+D23*$C$23+D24*$C$24+D25*$C$25+D26*$C$26+D27*$C$27+D28*$C$28+D29*$C$29+D30*$C$30+D31*$C$31+D32*$C$32+D33*$C$33+D34*$C$34+D35*$C$35+D36*$C$36+D37*$C$37+D38*$C$38+D39*$C$39+D40*$C$40+D41*$C$41+D42*$C$42+D43*$C$43+D44*$C$44+D45*$C$45+D46*$C$46+D47*$C$47+D48*$C$48+D49*$C$49+D50*$C$50+D51*$C$51+D52*$C$52+D53*$C$53+D54*$C$54+D55*$C$55+D56*$C$56+D57*$C$57+D58*$C$58+D59*$C$59+D60*$C$60+D61*$C$61","v":0},{"$f":"E6*$C$6+E7*$C$7+E8*$C$8+E9*$C$9+E10*$C$10+E11*$C$11+E12*$C$12+E13*$C$13+E14*$C$14+E15*$C$15+E16*$C$16+E17*$C$17+E18*$C$18+E19*$C$19+E20*$C$20+E21*$C$21+E22*$C$22+E23*$C$23+E24*$C$24+E25*$C$25+E26*$C$26+E27*$C$27+E28*$C$28+E29*$C$29+E30*$C$30+E31*$C$31+E32*$C$32+E33*$C$33+E34*$C$34+E35*$C$35+E36*$C$36+E37*$C$37+E38*$C$38+E39*$C$39+E40*$C$40+E41*$C$41+E42*$C$42+E43*$C$43+E44*$C$44+E45*$C$45+E46*$C$46+E47*$C$47+E48*$C$48+E49*$C$49+E50*$C$50+E51*$C$51+E52*$C$52+E53*$C$53+E54*$C$54+E55*$C$55+E56*$C$56+E57*$C$57+E58*$C$58+E59*$C$59+E60*$C$60+E61*$C$61","v":0},0,0,0,0,0,0,0,0,0,0,0,0,0,0,0,0,0,0,0,0,0,0,0,0,0,0,0,0,0]